Cogmind - Beta 17.1 @@@ ROGUE MODE // 2026.09.14 @ 20:23:58 Player: mabla Result: Destroyed by S-43 Plague with Heavy Machine Gun Performance ------------- Evolutions (7) 3500 Regions Visited (13) 2600 Robots Destroyed (69) 345 Value Destroyed (2658) 2658 Prototype IDs (4) 80 Alien Tech Used (0) 0 Bonus (0) 0 TOTAL SCORE: 9183 Bonus ------- None Cogmind --------- Core Integrity 0/1300 Matter 251/300 Energy 100/100 System Corruption 0% Temperature Cool (0) Movement Core (50) Location -3/Research Parts ------- > --- POWER (2) -------- (None) > --- PROPULSION (8) --- (None) > --- UTILITY (8) ------ (None) > --- WEAPON (3) ------- (None) > --- INVENTORY (5) ---- Centrium Wheel Centrium Wheel Centrium Wheel Centrium Wheel Centrium Wheel Peak State ------------ > --- POWER ------------ Fission Core Improved Fusion Compressor > --- PROPULSION ------- Nuclear Pulse Thruster Nuclear Pulse Thruster Nuclear Pulse Thruster Nuclear Pulse Thruster Nuclear Pulse Thruster Nuclear Pulse Thruster Nuclear Pulse Thruster > --- UTILITY ---------- Power Amplifier Advanced Heat Sink Large Storage Unit ECM Suite Advanced ECM Suite Advanced Hacking Suite > --- WEAPON ----------- (None) > --- INVENTORY -------- Armored Leg Armored Leg Armored Leg Armored Leg Armored Leg Armored Leg Armored Leg Myomer Leg Field Propulsion Drive Improved Cooling System Enhanced Optical Array Advanced Signal Interpreter Layered Light Armor Plating Advanced Datajack [Rating: 76] Favorites ----------- Power Ion Engine Engine Ion Engine Power Core Light Nuclear Core Propulsion Aluminum Leg Leg Aluminum Leg Hover Unit Improved Antigrav System Flight Unit Nuclear Pulse Thruster Utility Large Storage Unit Device Sensor Array Storage Large Storage Unit Processor Target Analyzer Hackware Advanced Hacking Suite Protection Medium Armor Plating Weapon Light Cannon Energy Gun Shock Rifle Energy Cannon Improved EM Pulse Cannon Ballistic Gun Heavy Assault Rifle Ballistic Cannon Light Cannon Launcher Grenade Launcher Build | -11 -10 -9 -8 -7 -7 -7 -6 -5 -5 -5 -4 -4 -3 ------- Run | Yrd Mat Mat Mat Fac Low Low Fac Fac Upp Upp Fac Ext Res Slots Evolved 14 | . . 2 2 2 . . 2 2 . . 2 . 2 Power 1 | . . . . . . . . . . . 1 . . Propulsion 6 | . . 2 . 1 . . 1 1 . . . . 1 Utility 6 | . . . 1 1 . . 1 1 . . 1 . 1 Weapon 1 | . . . 1 . . . . . . . . . . Parts Attached 98 | 6 11 18 5 15 4 3 20 5 . . 5 3 3 Power 12 | 1 1 1 . 2 1 . 3 1 . . 2 . . Engine 5 | 1 1 1 . . 1 . 1 . . . . . . Core 7 | . . . . 2 . . 2 1 . . 2 . . Reactor . | . . . . . . . . . . . . . . Propulsion 32 | 2 5 6 . 2 1 . 6 4 . . . 3 3 Treads . | . . . . . . . . . . . . . . Leg 19 | 2 5 6 . 2 1 . . . . . . 3 . Wheel . | . . . . . . . . . . . . . . Hover 3 | . . . . . . . . . . . . . 3 Flight 10 | . . . . . . . 6 4 . . . . . Utility 31 | 1 2 6 2 8 2 1 6 . . . 3 . . Device 11 | . . . 1 3 1 1 3 . . . 2 . . Storage 7 | 1 1 3 . 1 . . 1 . . . . . . Processor 1 | . . . . . 1 . . . . . . . . Hackware 1 | . . . . . . . . . . . 1 . . Protection 11 | . 1 3 1 4 . . 2 . . . . . . Artifact . | . . . . . . . . . . . . . . Weapon 23 | 2 3 5 3 3 . 2 5 . . . . . . Energy Gun 9 | . . 3 1 2 . . 3 . . . . . . Energy Cannon 1 | . . . . . . . 1 . . . . . . Ballistic Gun 6 | 2 . 2 1 . . . 1 . . . . . . Ballistic Cannon 6 | . 3 . 1 1 . 1 . . . . . . . Launcher 1 | . . . . . . 1 . . . . . . . Special Weapon . | . . . . . . . . . . . . . . Impact Weapon . | . . . . . . . . . . . . . . Slashing Weapon . | . . . . . . . . . . . . . . Piercing Weapon . | . . . . . . . . . . . . . . Special Melee Weapon . | . . . . . . . . . . . . . . Unidentified Prototypes 2 | . . . . . . . 2 . . . . . . Parts Lost 45 | . 1 2 . 5 1 . 17 . . 1 1 12 5 Power 4 | . . . . . . . 1 . . . 1 2 . Propulsion 23 | . . . . . . . 9 . . 1 . 8 5 Utility 10 | . . 1 . 3 1 . 3 . . . . 2 . Weapon 8 | . 1 1 . 2 . . 4 . . . . . . Highest Loss Streak 13 | . 1 1 . 2 1 . 13 . . 1 1 11 5 To Critical Strikes . | . . . . . . . . . . . . . . Average Backups 12 | 2 7 13 14 14 14 15 12 13 15 14 13 8 4 Power 1 | . 1 1 1 1 2 1 3 2 2 2 . . . Propulsion 4 | 1 4 3 4 4 4 4 2 5 9 8 8 5 1 Utility 4 | . 1 6 4 4 4 4 4 4 4 4 3 3 3 Weapon 2 | . 1 2 5 3 4 5 2 . . . . . . Tool/Special . | . . . . . . . . . . . . . . Unused Backups 52 | . 5 7 4 1 . 2 15 2 . . 1 9 6 Power 9 | . . . 1 . . 1 6 1 . . . . . Propulsion 14 | . 4 . . . . . 1 . . . 1 6 2 Utility 22 | . . 6 1 . . 1 7 1 . . . 2 4 Weapon 6 | . 1 1 2 1 . . 1 . . . . . . Tool/Special 1 | . . . . . . . . . . . . 1 . Average Slot Usage (%) 89 | . 93 99 99 98 100 100 73 68 64 64 69 46 11 Engine 6 | . 13 11 9 1 . 7 3 . . . . . . Core 2 | . . . . 5 6 . 2 5 5 5 9 5 . Leg 29 | . 28 43 36 38 38 38 15 . . . . 4 5 Flight 5 | . . . . . . . 17 40 41 41 36 18 . Device 4 | . . . 9 5 7 7 5 11 11 11 12 11 . Storage 9 | . 15 11 9 7 7 7 10 9 5 5 5 2 . Processor 1 | . . . . . 6 7 3 . . . . . . Protection 8 | . 9 10 9 15 7 7 4 . . . . . . Energy Gun 6 | . . 6 17 4 15 15 4 . . . . . . Ballistic Gun 4 | . 6 7 8 5 . . . . . . . . . Ballistic Cannon 7 | . 19 8 . 11 7 5 . . . . . . . Peak Build Rating 76 | 6 7 17 22 34 39 42 58 61 58 58 76 76 28 Average Rating 27 | 4 6 11 20 28 35 40 42 59 58 57 70 44 20 On Entrance 34 | . 6 7 17 21 34 38 38 51 58 58 58 76 14 Avg Prop Armor Cover (%) 16 | . . . . . . . 5 . . . . . 18 Naked Turns 34 | . . . . . . . . . . . . 17 17 Heaviest Build 56 | 12 17 35 41 56 50 47 54 33 32 32 44 44 . Greatest Support 75 | 20 20 40 40 60 65 65 75 43 42 42 49 57 41 Greatest Overweight (x) 4 | . . . 1 . . . 4 . . . . 1 . Average Overweight (x) . | . . . . . . . . . . . . . . Largest Inventory Capacity 15 | 8 8 15 15 15 15 15 15 15 15 15 15 15 5 Average Capacity 13 | 7 8 14 15 15 15 15 13 15 15 15 15 10 5 Most Carried 15 | 6 8 15 15 15 15 15 15 15 15 15 15 14 5 Average Carried 12 | 3 7 13 14 14 14 14 12 13 15 14 13 8 4 Final Capacity 15 | 8 8 15 15 15 15 15 15 15 15 15 15 5 5 Final Carried 15 | 6 8 15 15 15 15 15 15 15 15 14 14 5 5 Class Distribution -------------------- 21% | Mutant 20% | Scavenger-Mutant 18% | Scavenger-Gunner 15% | Scavenger-Tank 11% | Sprinter 10% | Scavenger-Skirmisher Dominant Class ---------------- Mutant | -10/Materials Scavenger-Mutant | -9/Materials Scavenger-Skirmisher | -8/Materials Scavenger-Tank | -7/Factory Scavenger-Gunner | -7/Lower Caves Scavenger-Gunner | -7/Lower Caves Sprinter | -6/Factory Sprinter | -5/Factory Sprinter | -5/Upper Caves Sprinter | -5/Upper Caves Sprinter | -4/Factory Mutant | -4/Extension Mutant | -3/Research Resources | -11 -10 -9 -8 -7 -7 -7 -6 -5 -5 -5 -4 -4 -3 ----------- Run | Yrd Mat Mat Mat Fac Low Low Fac Fac Upp Upp Fac Ext Res Matter Collected 2534 | 247 354 430 125 503 159 67 509 . 55 . 70 15 . Remotely . | . . . . . . . . . . . . . . Salvage Created 2465 | . 382 702 456 303 46 102 474 . . . . . . Parts 138 | . 18 49 26 18 3 5 19 . . . . . . Haulers Intercepted . | . . . . . . . . . . . . . . Recyclers Shooed 2 | . . 1 . . . . 1 . . . . . . Parts Field Recycled . | . . . . . . . . . . . . . . Retrieved Matter . | . . . . . . . . . . . . . . Parts Self-Destructed 11 | . . . . . 2 4 . . 5 . . . . Prevented 2 | . . . . . 1 1 . . . . . . . Parts Restored . | . . . . . . . . . . . . . . Kills | -11 -10 -9 -8 -7 -7 -7 -6 -5 -5 -5 -4 -4 -3 ------- Run | Yrd Mat Mat Mat Fac Low Low Fac Fac Upp Upp Fac Ext Res Combat Hostiles Destroyed 62 | . 9 17 8 12 2 4 10 . . . . . . Guns 37 | . 5 10 8 6 1 . 7 . . . . . . Cannons 20 | . 4 7 . 6 1 . 2 . . . . . . AOE 5 | . . . . . . 4 1 . . . . . . Classes Destroyed 8 | . 2 2 . 2 . 1 1 . . . . . . Mechanic 1 | . . . . . . . 1 . . . . . . Watcher 6 | . 2 3 . . . . 1 . . . . . . Swarmer 13 | . . 3 . 6 1 . 3 . . . . . . Grunt 31 | . 9 8 4 3 . 3 4 . . . . . . Duelist 1 | . . . . . . 1 . . . . . . . Sentry 14 | . . 6 4 . 1 . 3 . . . . . . Hunter 1 | . . . . 1 . . . . . . . . . Programmer 2 | . . . . 2 . . . . . . . . . Best Kill Streak 7 | . 3 3 2 3 1 4 7 . . . . . . Combat Bots Only 6 | . 3 3 2 3 1 4 6 . . . . . . Max Kills in Single Turn 2 | . 1 1 1 1 1 2 2 . . . . . . Gunslinging . | . . . . . . . . . . . . . . Exploded 2 | . . . . . . 2 1 . . . . . . Melee . | . . . . . . . . . . . . . . Uniques/NPCs Destroyed . | . . . . . . . . . . . . . . Combat | -11 -10 -9 -8 -7 -7 -7 -6 -5 -5 -5 -4 -4 -3 -------- Run | Yrd Mat Mat Mat Fac Low Low Fac Fac Upp Upp Fac Ext Res Hostile Shots Fired 862 | . 42 96 40 116 70 13 159 . 5 20 7 173 121 Missed 326 | . 7 32 20 35 33 7 57 . 3 9 4 80 39 Hits 536 | . 35 64 20 81 37 6 102 . 2 11 3 93 82 Projectile 536 | . 35 64 20 81 37 6 102 . 2 11 3 93 82 AOE 3 | . . . . . . . . . . . 3 . . Critical Strikes 16 | . 1 6 2 2 . . 2 . . . . 2 1 Actively Blocked 3 | . . 3 . . . . . . . . . . . Damage Taken 8917 | . 504 854 258 1211 270 93 1613 . 33 151 118 1998 1814 Core 2951 | . 123 59 24 60 28 16 370 . . 28 87 843 1313 Absorbed by Shields . | . . . . . . . . . . . . . . Redirected to Shielding 342 | . 7 65 33 198 13 18 8 . . . . . . Regen/Repaired (Parts) 109 | . 47 . 62 . . . . . . . . . . Core Remaining (%) 73 | 100 50 85 95 . . 85 56 . . 97 . 19 . Volleys Fired 204 | . 46 54 15 40 9 4 36 . . . . . . Largest 3 | . 2 2 3 3 3 1 3 . . . . . . Hottest 213 | . 60 73 123 143 161 30 213 . . . . . . Shots Fired 433 | . 89 94 45 109 25 4 67 . . . . . . Gun 275 | . 55 68 45 46 16 . 45 . . . . . . Cannon 151 | . 34 26 . 63 9 . 19 . . . . . . Launcher 7 | . . . . . . 4 3 . . . . . . Special . | . . . . . . . . . . . . . . Kinetic 287 | . 89 63 15 93 9 . 18 . . . . . . Thermal 38 | . . . . 5 7 . 26 . . . . . . Explosive 7 | . . . . . . 4 3 . . . . . . Electromagnetic 101 | . . 31 30 11 9 . 20 . . . . . . Robot Hit Streak 15 | . 10 13 8 6 9 3 15 . . . . . . Robot Miss Streak 8 | . 4 3 2 7 8 1 6 . . . . . . Penetration Max . | . . . . . . . . . . . . . . Secondary Targets 1 | . . 1 . . . . . . . . . . . Max Gunslinging Chain 1 | . . 1 . . . . . . . . . . . Shots Hit Robots 279 | . 56 65 30 58 14 3 53 . . . . . . Core Hits 169 | . 21 31 16 33 10 8 49 . . . . 1 . Critical Kills . | . . . . . . . . . . . . . . Critical Parts Destroyed . | . . . . . . . . . . . . . . Critical Strikes 6 | . . 2 1 . 2 . 1 . . . . . . Burn 2 | . . . . . 1 . 1 . . . . . . Blast 2 | . . 2 . . . . . . . . . . . Corrupt 2 | . . . 1 . 1 . . . . . . . . Melee Attacks . | . . . . . . . . . . . . . . Impact . | . . . . . . . . . . . . . . Slashing . | . . . . . . . . . . . . . . Piercing . | . . . . . . . . . . . . . . Sneak Attacks . | . . . . . . . . . . . . . . Combat Hostiles . | . . . . . . . . . . . . . . Follow-up Attacks . | . . . . . . . . . . . . . . Damage Inflicted 5319 | . 620 1087 511 1006 289 324 1476 . . . . 6 . Guns 2649 | . 282 697 511 281 107 . 771 . . . . . . Cannons 1932 | . 338 302 . 725 182 . 385 . . . . . . Explosions 727 | . . 83 . . . 324 320 . . . . . . Melee . | . . . . . . . . . . . . . . Ramming 11 | . . 5 . . . . . . . . . 6 . Kinetic 2819 | . 620 643 120 925 182 . 329 . . . . . . Thermal 621 | . . 83 . 22 40 . 476 . . . . . . Explosive 644 | . . . . . . 324 320 . . . . . . Electromagnetic 1224 | . . 356 391 59 67 . 351 . . . . . . Impact . | . . . . . . . . . . . . . . Slashing . | . . . . . . . . . . . . . . Piercing . | . . . . . . . . . . . . . . Highest Corruption 3 | . . . . 3 . . . . . . 2 2 . Average Corruption 2 | . . . . 2 . . . . . . 2 2 . Corruption Purged 4 | . . . . 4 . . . . . . . . . Corruption Blocked . | . . . . . . . . . . . . . . Effects 3 | . . . . 2 . . . . . . . 1 . Message Errors 1 | . . . . 1 . . . . . . . . . Heat Flow Errors 1 | . . . . 1 . . . . . . . . . Energy Discharges 1 | . . . . . . . . . . . . 1 . Overload Shots . | . . . . . . . . . . . . . . Overflow Damage 86 | . 9 . . 19 . 15 43 . . . . . . Projectiles 71 | . 9 . . 19 . . 43 . . . . . . Explosions 15 | . . . . . . 15 . . . . . . . Melee . | . . . . . . . . . . . . . . Knockbacks 31 | . 5 3 . 19 4 . . . . . . . . Impact . | . . . . . . . . . . . . . . Kinetic 29 | . 5 3 . 17 4 . . . . . . . . Secondary 2 | . . . . 2 . . . . . . . . . Self-Inflicted Damage 256 | . . 44 . . . . 209 . . . . 3 . Shots 3 | . . 1 . . . . 2 . . . . . . Rammed 1 | . . . . . . . . . . . . 1 . Targets Rammed 2 | . . 1 . . . . . . . . . 1 . Kicked 1 | . . 1 . . . . . . . . . . . Crushed . | . . . . . . . . . . . . . . Highest Temperature 533 | . 54 69 146 506 452 . 533 . 7 . 14 96 . Average Temperature 110 | . 16 20 63 175 176 . 253 . 7 . 4 43 . Received Heat Transfer 1907 | . 294 336 99 108 36 54 469 . 9 . 21 481 . Effects 20 | . . . . 8 2 . 10 . . . . . . Shutdowns 6 | . . . . 4 1 . 1 . . . . . . Interference 6 | . . . . 1 . . 5 . . . . . . Matter Decay 3 | . . . . 2 1 . . . . . . . . Short Circuit 1 | . . . . . . . 1 . . . . . . Damage (minor) 1 | . . . . 1 . . . . . . . . . Damage (major) 2 | . . . . . . . 2 . . . . . . Damage (core) 1 | . . . . . . . 1 . . . . . . Siege Activations . | . . . . . . . . . . . . . . Martial Activations . | . . . . . . . . . . . . . . Shielding Activations . | . . . . . . . . . . . . . . Robots Disrupted . | . . . . . . . . . . . . . . Combat Hostiles . | . . . . . . . . . . . . . . Robots Corrupted . | . . . . . . . . . . . . . . Combat Hostiles . | . . . . . . . . . . . . . . Parts Fried 3 | . . 1 2 . . . . . . . . . . Impact Corruptions . | . . . . . . . . . . . . . . Robots Melted . | . . . . . . . . . . . . . . Combat Hostiles . | . . . . . . . . . . . . . . Parts Melted . | . . . . . . . . . . . . . . Heat Transferred 986 | . . 100 . 37 148 . 701 . . . . . . Parts Sabotaged . | . . . . . . . . . . . . . . Parts Stolen . | . . . . . . . . . . . . . . Parts Stripped . | . . . . . . . . . . . . . . Power Chain Reactions 1 | . . 1 . . . . . . . . . . . Alert | -11 -10 -9 -8 -7 -7 -7 -6 -5 -5 -5 -4 -4 -3 ------- Run | Yrd Mat Mat Mat Fac Low Low Fac Fac Upp Upp Fac Ext Res Maximum Alert Level . | . . . . . . . . . . . . . . Low Security (%) 100 | 100 100 100 100 100 . . 100 100 . . 100 100 100 Level 1 . | . . . . . . . . . . . . . . Level 2 . | . . . . . . . . . . . . . . Level 3 . | . . . . . . . . . . . . . . Level 4 . | . . . . . . . . . . . . . . Level 5 . | . . . . . . . . . . . . . . High Security . | . . . . . . . . . . . . . . Max Security . | . . . . . . . . . . . . . . Peak Influence 175 | . 95 153 112 111 . . 175 76 . . 129 90 60 Initial 114 | . . . 57 15 . . 55 76 . . 114 63 36 Average 49 | . 20 68 54 38 . . 54 59 . . 111 43 22 Influence Increases 2740 | . 270 528 271 340 40 120 585 14 120 135 105 152 60 Destroy 0b10 Robot/C 1240 | . 180 340 160 240 40 80 200 . . . . . . Destroy 0b10 Robot/NC 35 | . 10 15 . . . . 10 . . . . . . Destroy Leader 322 | . 44 116 50 60 . 10 42 . . . . . . Successful Hack 128 | . 19 20 . 24 . . 49 14 . . . 2 . Disable Machine 45 | . . . 15 . . . 30 . . . . . . Destroy Structure 40 | . 2 7 1 1 . . 29 . . . . . . Partial Spotted 195 | . . . . . . . 105 . . . 60 30 . Lose Combat Pursuer 735 | . 15 30 45 15 . 30 120 . 120 135 45 120 60 Influence Decreases 2700 | . 270 391 374 305 109 32 517 130 75 37 159 211 90 Entered New Map 439 | . . . 80 19 26 . 33 80 15 17 69 66 34 Time Decay 1937 | . 260 371 294 251 73 32 330 50 60 10 80 90 36 Lost Part 309 | . 10 20 . 35 10 . 154 . . 10 10 40 20 Lost Ally 15 | . . . . . . . . . . . . 15 . Squads Dispatched 20 | . 2 3 1 5 . . 6 . . . 2 1 . Investigation 4 | . . 1 . 2 . . . . . . 1 . . Extermination 3 | . . . . 2 . . 1 . . . . . . Reinforcement 10 | . 2 2 1 1 . . 2 . . . 1 1 . Assault . | . . . . . . . . . . . . . . Garrison 3 | . . . . . . . 3 . . . . . . Intercept . | . . . . . . . . . . . . . . Searches Triggered . | . . . . . . . . . . . . . . Construction Impeded . | . . . . . . . . . . . . . . Haulers Reinforced . | . . . . . . . . . . . . . . Active Scanning Responses . | . . . . . . . . . . . . . . Cargo Convoy Interrupts . | . . . . . . . . . . . . . . Stealth | -11 -10 -9 -8 -7 -7 -7 -6 -5 -5 -5 -4 -4 -3 --------- Run | Yrd Mat Mat Mat Fac Low Low Fac Fac Upp Upp Fac Ext Res Distress Signals 9 | . 2 2 1 . . . 2 . . . . 2 . Communications Jammed . | . . . . . . . . . . . . . . Distress Signals . | . . . . . . . . . . . . . . Times Spotted 179 | . 17 27 15 21 2 8 29 . 10 12 7 22 9 Peak Tracking Total 12 | . 5 4 5 3 2 8 7 . 8 9 4 12 8 Tactical Retreats 23 | . 1 1 2 1 . 1 5 . 3 1 2 5 1 ECM-based Alert Blocks 7 | . . . . . . . . . . . . 7 . Traps | -11 -10 -9 -8 -7 -7 -7 -6 -5 -5 -5 -4 -4 -3 ------- Run | Yrd Mat Mat Mat Fac Low Low Fac Fac Upp Upp Fac Ext Res Traps Triggered 7 | . 1 2 . . . . . 2 . . 2 . . Indirectly . | . . . . . . . . . . . . . . Trap Hack Attempts . | . . . . . . . . . . . . . . Triggered . | . . . . . . . . . . . . . . Disarmed . | . . . . . . . . . . . . . . Reprogrammed . | . . . . . . . . . . . . . . Reused . | . . . . . . . . . . . . . . Traps Extracted . | . . . . . . . . . . . . . . Installed . | . . . . . . . . . . . . . . Triggered . | . . . . . . . . . . . . . . Machines | -11 -10 -9 -8 -7 -7 -7 -6 -5 -5 -5 -4 -4 -3 ---------- Run | Yrd Mat Mat Mat Fac Low Low Fac Fac Upp Upp Fac Ext Res Machines Disabled 3 | . . . 1 . . . 2 . . . . . . Max in Single Turn 2 | . . . 1 . . . 2 . . . . . . Machines Repaired . | . . . . . . . . . . . . . . Machines Dismantled . | . . . . . . . . . . . . . . Machines Sabotaged . | . . . . . . . . . . . . . . Overloaded Fab Kills . | . . . . . . . . . . . . . . Hacking | -11 -10 -9 -8 -7 -7 -7 -6 -5 -5 -5 -4 -4 -3 --------- Run | Yrd Mat Mat Mat Fac Low Low Fac Fac Upp Upp Fac Ext Res Machines Accessed 54 | . 5 8 4 4 . 1 12 6 1 . 8 5 . Terminals 31 | . 3 6 2 1 . . 8 4 . . 2 5 . Fabricators 4 | . . . . 1 . . . 1 . . 2 . . Repair Stations 3 | . 1 . 1 1 . . . . . . . . . Recycling Units 8 | . 1 1 1 . . . 3 . . . 2 . . Scanalyzers 6 | . . 1 . 1 . . 1 1 . . 2 . . Garrison Access . | . . . . . . . . . . . . . . Total Hacks 117 | . 10 23 11 9 . 1 20 9 1 . 23 10 . Successful 55 | . 9 10 3 3 . 1 8 2 1 . 15 3 . Failed 61 | . 1 13 8 6 . . 12 7 . . 7 7 . Catastrophic 12 | . . . 2 2 . . 4 1 . . 2 1 . Database Lockouts 1 | . . . . . . . . . . . 1 . . Manual 16 | . . . 1 . . . 5 2 . . 4 4 . Terminals 66 | . 7 15 6 3 . . 15 6 . . 4 10 . Fabricators 7 | . . . . 3 . . . 2 . . 2 . . Repair Stations 6 | . 2 . 2 2 . . . . . . . . . Recycling Units 10 | . 1 1 3 . . . 3 . . . 2 . . Scanalyzers 26 | . . 7 . 1 . . 2 1 . . 15 . . Garrison Access . | . . . . . . . . . . . . . . Terminal Hacks 30 | . 6 5 1 2 . 1 7 2 1 . 2 3 . Record 11 | . . . . 2 . . 5 1 . . 2 1 . Prototype ID Bank 1 | . . 1 . . . . . . . . . . . Open Door 3 | . . . . . . 1 . . 1 . . 1 . Open DSF 1 | . . . . . . . 1 . . . . . . Branch Access Points 1 | . . 1 . . . . . . . . . . . Emergency Access Points 1 | . 1 . . . . . . . . . . . . Locate Traps 4 | . 1 1 1 . . . . . . . . 1 . Dispatch Records 3 | . 2 1 . . . . . . . . . . . Surveillance Status 1 | . 1 . . . . . . . . . . . . Assault Status 1 | . 1 . . . . . . . . . . . . Hauler Manifests 1 | . . 1 . . . . . . . . . . . Zone Layout 2 | . . . . . . . 1 1 . . . . . Fabricator Hacks 2 | . . . . 1 . . . . . . 1 . . Network Status 1 | . . . . . . . . . . . 1 . . Load Schematic 1 | . . . . 1 . . . . . . . . . Repair Station Hacks 4 | . 2 . 2 . . . . . . . . . . Scan Component 2 | . 1 . 1 . . . . . . . . . . Repair 2 | . 1 . 1 . . . . . . . . . . Recycling Unit Hacks 1 | . 1 . . . . . . . . . . . . Retrieve Components 1 | . 1 . . . . . . . . . . . . Scanalyzer 18 | . . 5 . . . . 1 . . . 12 . . Insert Component 8 | . . 3 . . . . 1 . . . 4 . . Analyze 6 | . . 2 . . . . . . . . 4 . . Retrieve Study 4 | . . . . . . . . . . . 4 . . Garrison Access Hacks . | . . . . . . . . . . . . . . Unauthorized Hacks . | . . . . . . . . . . . . . . Terminals . | . . . . . . . . . . . . . . Fabricators . | . . . . . . . . . . . . . . Repair Stations . | . . . . . . . . . . . . . . Recycling Units . | . . . . . . . . . . . . . . Scanalyzers . | . . . . . . . . . . . . . . Garrison Access . | . . . . . . . . . . . . . . Data Cores Recovered . | . . . . . . . . . . . . . . Used . | . . . . . . . . . . . . . . Hacking Detections 44 | . 4 6 3 4 . . 10 5 . . 8 4 . Full Trace Events 3 | . . . . 2 . . . . . . 1 . . Feedback Events . | . . . . . . . . . . . . . . Feedback Blocked . | . . . . . . . . . . . . . . Robot Schematics Acquired . | . . . . . . . . . . . . . . Robots Built . | . . . . . . . . . . . . . . Authchips . | . . . . . . . . . . . . . . Time . | . . . . . . . . . . . . . . Total Robot Build Rating . | . . . . . . . . . . . . . . Part Schematics Acquired 5 | . . 2 . . . . . . . . 3 . . Parts Built . | . . . . . . . . . . . . . . Authchips . | . . . . . . . . . . . . . . Time . | . . . . . . . . . . . . . . Total Part Build Rating . | . . . . . . . . . . . . . . Part Studies Acquired 4 | . . . . . . . . . . . 4 . . Parts Repaired 2 | . 1 . 1 . . . . . . . . . . Time 42 | . 26 . 16 . . . . . . . . . . Parts Recycled . | . . . . . . . . . . . . . . Recycled Matter . | . . . . . . . . . . . . . . Retrieved Matter . | . . . . . . . . . . . . . . Retrieved Components 4 | . 4 . . . . . . . . . . . . Parts Scanalyzed 7 | . . 2 . . . . 1 . . . 4 . . Part Schematics Acquired 5 | . . 2 . . . . . . . . 3 . . Parts Damaged 2 | . . 1 . . . . . . . . 1 . . Bothacking | -11 -10 -9 -8 -7 -7 -7 -6 -5 -5 -5 -4 -4 -3 ------------ Run | Yrd Mat Mat Mat Fac Low Low Fac Fac Upp Upp Fac Ext Res Used RIF Installer . | . . . . . . . . . . . . . . Robots Hacked . | . . . . . . . . . . . . . . Non-combat . | . . . . . . . . . . . . . . Combat . | . . . . . . . . . . . . . . Robot Hacks Applied . | . . . . . . . . . . . . . . Relay Couplers Released . | . . . . . . . . . . . . . . Fabnet Peak Effective % . | . . . . . . . . . . . . . . Robots Rewired . | . . . . . . . . . . . . . . Allies Hacked . | . . . . . . . . . . . . . . Hacks Repelled . | . . . . . . . . . . . . . . Allies | -11 -10 -9 -8 -7 -7 -7 -6 -5 -5 -5 -4 -4 -3 -------- Run | Yrd Mat Mat Mat Fac Low Low Fac Fac Upp Upp Fac Ext Res Total Allies 2 | . . . . . . . . . . . . 2 . Largest Group 2 | . . . . . . . . . . . . 2 . Highest-Rated Group 75 | . . . . . . . . . . . . 75 . Highest-Rated Ally 46 | . . . . . . . . . . . . 46 . Total Orders . | . . . . . . . . . . . . . . Ally Attacks 5 | . . . . . . . . . . . . 5 . Total Damage 193 | . . . . . . . . . . . . 193 . Kills . | . . . . . . . . . . . . . . Allies Corrupted . | . . . . . . . . . . . . . . Allies Melted . | . . . . . . . . . . . . . . Intel | -11 -10 -9 -8 -7 -7 -7 -6 -5 -5 -5 -4 -4 -3 ------- Run | Yrd Mat Mat Mat Fac Low Low Fac Fac Upp Upp Fac Ext Res Active Infowar (turns) 1297 | . . . 657 600 . . 2 . . . 2 36 . Sensors 1256 | . . . 657 599 . . . . . . . . . Jamming 2 | . . . . . . . 2 . . . . . . ECM 39 | . . . . 1 . . . . . . 2 36 . Robot Analysis Total . | . . . . . . . . . . . . . . Derelict Logs Recovered 2 | . . . . . 1 1 . . . . . . . Drone Launches . | . . . . . . . . . . . . . . Drone Recoveries . | . . . . . . . . . . . . . . Exploration | -11 -10 -9 -8 -7 -7 -7 -6 -5 -5 -5 -4 -4 -3 ------------- Run | Yrd Mat Mat Mat Fac Low Low Fac Fac Upp Upp Fac Ext Res Turns Passed 6273 | 70 904 1223 657 955 395 488 792 104 123 39 177 236 110 Spaces Moved 6754 | 48 585 744 380 597 292 394 1290 324 525 162 724 598 91 Core 85 | 4 . . . . . . 34 . . . . 34 13 Treads . | . . . . . . . . . . . . . . Legs 3316 | 44 585 744 380 597 292 394 162 . . . . 70 48 Wheels . | . . . . . . . . . . . . . . Hover 30 | . . . . . . . . . . . . . 30 Flight 3323 | . . . . . . . 1094 324 525 162 724 494 . Fastest Speed 22 | 50 120 120 120 120 120 120 25 22 22 22 22 22 50 Average Speed 72 | 114 120 120 120 120 120 120 43 22 22 22 22 37 90 Slowest Speed 250 | 120 120 120 190 120 120 120 250 22 22 25 25 120 120 Overloaded Moves . | . . . . . . . . . . . . . . Propulsion Burnouts . | . . . . . . . . . . . . . . Robots Hopped 14 | . . . . . . . 2 1 . 3 5 3 . Potential Cave-ins . | . . . . . . . . . . . . . . Cave-ins Triggered . | . . . . . . . . . . . . . . Exploration Rate (%) 35 | 5 75 50 33 17 49 47 42 11 59 21 23 67 4 Regions Visited 13 Branch Regions 5 Pre-discovered Areas . | . . . . . . . . . . . . . . Known Exits Taken . | . . . . . . . . . . . . . . Unknown Exits Taken 13 | 1 1 1 1 1 1 1 1 1 1 1 1 1 . Scrap Searched 3 | . . . . . 1 1 . . 1 . . . . Spaces Dug . | . . . . . . . . . . . . . . Terrain Destroyed 54 | . . 3 . . . 23 28 . . . . . . Melee . | . . . . . . . . . . . . . . Projectile . | . . . . . . . . . . . . . . AOE 54 | . . 3 . . . 23 28 . . . . . . Terrain Rammed . | . . . . . . . . . . . . . . Walls Destroyed . | . . . . . . . . . . . . . . Machines Disabled . | . . . . . . . . . . . . . . Actions | -11 -10 -9 -8 -7 -7 -7 -6 -5 -5 -5 -4 -4 -3 --------- Run | Yrd Mat Mat Mat Fac Low Low Fac Fac Upp Upp Fac Ext Res Total 7752 | 60 711 983 545 751 317 406 1470 355 531 161 735 606 121 Wait 457 | . 48 127 131 73 8 . 46 . 7 2 . . 15 Move 6713 | 47 584 743 379 596 291 393 1285 321 524 155 713 591 91 Hop 14 | . . . . . . . 2 1 . 3 5 3 . Pick Up 104 | 7 9 16 6 9 1 2 34 4 . . 6 3 7 Fast Attach 30 | 5 2 4 1 2 1 . 11 . . . 2 1 1 Attach 48 | 1 1 4 2 8 1 . 16 2 . 1 5 5 2 Detach 10 | . . . . 2 . . 6 . . . . 2 . Swap 61 | . 9 15 5 14 3 3 7 3 . . 2 . . Drop 89 | . 12 19 6 7 3 4 27 4 . . 2 . 5 Fire 204 | . 46 54 15 40 9 4 36 . . . . . . Melee . | . . . . . . . . . . . . . . Ram 1 | . . . . . . . . . . . . 1 . Kick 1 | . . 1 . . . . . . . . . . . Crush . | . . . . . . . . . . . . . . Escape Stasis 20 | . . . . . . . . 20 . . . . . Rewire . | . . . . . . . . . . . . . . Trap . | . . . . . . . . . . . . . . Miscellaneous . | . . . . . . . . . . . . . . Route ------- -11/Scrapyard -10/Materials (discovered 4 exits: *Mat x2 / [*Min x2]) -9/Materials (discovered 2 exits: *Mat / Min) -8/Materials -7/Factory (discovered 2 exits: *Fac / [*Low]) -7/Lower Caves -7/Lower Caves (discovered 2 exits: *Fac / Dat) -6/Factory (discovered 2 exits: *Fac / [*Low]) -5/Factory -5/Upper Caves -5/Upper Caves -4/Factory -4/Extension (discovered 2 exits: *Res / [*Cet]) -3/Research History --------- Turn | Location | Event 34 | -11/Scrapyard | Discovered new exit (range 14) 71 | -11/Scrapyard | Entered Materials 195 | -10/Materials | Discovered new exit (range 16) 244 | -10/Materials | Discovered new exit (range 15) 310 | -10/Materials | Build established: Mutant 339 | -10/Materials | Repaired Ion Engine 716 | -10/Materials | Discovered new exit (range 13) 935 | -10/Materials | Discovered new exit (range 6) 975 | -10/Materials | Entered another Materials area 975 | -9/Materials | Evolved 2 slots: Propulsion x2 1280 | -9/Materials | Build established: Scavenger-Mutant 1776 | -9/Materials | Identified exit to Mines 2170 | -9/Materials | Discovered new exit (range 10) 2198 | -9/Materials | Entered another Materials area 2198 | -8/Materials | Evolved 2 slots: Utility x1, Weapon x1 2369 | -8/Materials | Repaired Hvy. Assault Rifle 2671 | -8/Materials | Build established: Scavenger-Skirmisher 2756 | -8/Materials | Discovered new exit (range 3) 2855 | -8/Materials | Entered Factory 2855 | -7/Factory | Evolved 2 slots: Propulsion x1, Utility x1 2877 | -7/Factory | Discovered new exit (range 7) 3410 | -7/Factory | Build established: Scavenger-Tank 3800 | -7/Factory | Discovered new exit (range 9) 3810 | -7/Factory | Entered Lower Caves 3838 | -7/Lower Caves | Attracted the attention of an 0b10 checkpoint 4130 | -7/Lower Caves | Build established: Scavenger-Gunner 4198 | -7/Lower Caves | Discovered new exit (range 7) 4199 | -7/Lower Caves | Learned Factory emergency access door positions 4205 | -7/Lower Caves | Entered another Lower Caves area 4210 | -7/Lower Caves | Discovered new exit (range 14) 4503 | -7/Lower Caves | Identified exit to Data Miner 4693 | -7/Lower Caves | Entered Factory 4693 | -6/Factory | Evolved 2 slots: Propulsion x1, Utility x1 4797 | -6/Factory | Lost 3 parts (1n1u1w) 4970 | -6/Factory | Garrison activated, responded to threat 5064 | -6/Factory | Lost 13 parts (1p7n2u3w) 5395 | -6/Factory | Discovered new exit (range 14) 5452 | -6/Factory | Discovered new exit (range 15) 5485 | -6/Factory | Entered another Factory area 5485 | -5/Factory | Evolved 2 slots: Propulsion x1, Utility x1 5508 | -5/Factory | Build established: Sprinter 5539 | -5/Factory | Discovered new exit (range 7) 5589 | -5/Factory | Entered Upper Caves 5633 | -5/Upper Caves | Encountered a Warlord checkpoint 5711 | -5/Upper Caves | Discovered new exit (range 5) 5712 | -5/Upper Caves | Entered another Upper Caves area 5749 | -5/Upper Caves | Discovered new exit (range 13) 5751 | -5/Upper Caves | Entered Factory 5751 | -4/Factory | Evolved 2 slots: Power x1, Utility x1 5807 | -4/Factory | Spotted B-86 Titan 5866 | -4/Factory | Central database locked down 5925 | -4/Factory | Discovered new exit (range 16) 5928 | -4/Factory | Entered Extension 5960 | -4/Extension | Spotted B-86 Titan 5991 | -4/Extension | Rescued a captive Derelict 5992 | -4/Extension | Rescued a captive Derelict 6055 | -4/Extension | Spotted B-86 Titan 6057 | -4/Extension | Released all parts (5) 6079 | -4/Extension | Core integrity fell below 50% 6108 | -4/Extension | Lost 11 parts (2p7n2u) 6132 | -4/Extension | Discovered new exit (range 16) 6134 | -4/Extension | Discovered new exit (range 14) 6161 | -4/Extension | Core integrity fell below 20% 6164 | -4/Extension | Entered Research 6164 | -3/Research | Evolved 2 slots: Propulsion x1, Utility x1 6263 | -3/Research | Core integrity fell below 50% 6269 | -3/Research | Core integrity fell below 20% 6274 | -3/Research | Destroyed by S-43 Plague with Heavy Machine Gun Last Messages --------------- Acquired Antigrav Array. Imp. Antigrav System destroyed. Dropped Enh. Optical Array. Dropped Adv. Sensor Array. Dropped Imp. Reaction Control System. Dropped Lyr. Light Armor Plating. Dropped Adv. Force Field. Acquired Centrium Wheel. Antigrav Array destroyed. Acquired Centrium Wheel. R-10 Processor collects Lyr. Light Armor Plating. Acquired Centrium Wheel. R-10 Processor collects Adv. Sensor Array. R-10 Processor collects Enh. Optical Array. S-43 Plague destroyed. R-10 Processor collects Imp. Reaction Control System. R-10 Processor collects Adv. Force Field. K-01 Serf collects debris. Map ----- +----------------------------------------------------+ | ?????# + #????????????????????????????? | | ?????# """ # #????????????????????????????? | | ?????# """ # #????????????????????????????? | | ?????# """ # #????????????????????????????? | | ?????# # #????????????????????????????? | | ?????# # #????????????????????????????? | | ?????########### #????????????????????????????? | | ???????????????# #????????????????????????????? | | ???????????????# #????????????????????????????? | | ??############## #????????????????????????????? | | ??# ! !# #????????????????????????????? | | ??# # #????????????????????????????? | | ??#"" """ # #????????????????????????????? | | ??#"" """ # #####+#########??????????????? | | ??#"" """ # #??????????????? | | ??#"Y + #??????????????? | | ??#"" # #??????????????? | | ??#"" """ # #??????????????? | | ??#"" """ # ###+###### #??????????????? | | ??# ! ! """ # # #????????????????????? | | ??# # # RR #????????????????????? | | ??# # # s ! #????????????????????? | | ??############## #k ss*! #????????????????????? | | ???????????????# # ssss! #????????????????????? | | ???????????????# # #????????????????????? | | ???????????????# # @ #????????????????????? | | ???????????????# # #????????????????????? | | ???????????????# # #????????????????????? | | ???????????????# # #????????????????????? | | ???????????????# # ! = #????????????????????? | | ???????????????# #########????????????????????? | | ???????????????# #????????????????????????????? | | ???????????????# #????????????????????????????? | | ???????????????# #????????????????????????????? | | ???????????????# #????????????????????????????? | | ???????????????? /????????????????????????????? | | ???????????????? ??????????????????????????????? | | ?????????????????????????????????????????????????? | | ?????????????????????????????????????????????????? | | ?????????????????????????????????????????????????? | | ?????????????????????????????????????????????????? | | ?????????????????????????????????????????????????? | | ?????????????????????????????????????????????????? | | ?????????????????????????????????????????????????? | | ?????????????????????????????????????????????????? | | ?????????????????????????????????????????????????? | | ?????????????????????????????????????????????????? | | ?????????????????????????????????????????????????? | | ?????????????????????????????????????????????????? | | ?????????????????????????????????????????????????? | +----------------------------------------------------+ Best States ------------- Heat Dissipation 70 Energy Generation 61 Energy Capacity 520 Matter Stores 300 Matter Capacity 400 Sight Range 16 Robot Scan Range 14 Terrain Scan Density 10 ECM Strength 3 Power Amplification 20 Armor Coverage 450 Propulsion Shielding 66 Weapon Shielding 33 Evasion (%) 65 Target Analysis 5 Energy Filtering 30 Offensive Hacking 14 Item Schematics ----------------- Aluminum Leg | -9/Materials | Scanalyzed Ion Engine | -9/Materials | Scanalyzed Field Propulsion Array | -4/Factory | Scanalyzed ECM Suite | -4/Factory | Scanalyzed Field Propulsion Drive | -4/Factory | Scanalyzed Robot Schematics ------------------ None Fabricated ------------ Nothing Repaired ---------- Ion Engine | 21% | -10/Materials Hvy. Assault Rifle | 46% | -8/Materials Studied --------- Nuclear Pulse Thruster | -4/Factory | Hacked Fission Core | -4/Factory | Hacked Imp. Fusion Compressor | -4/Factory | Hacked Field Propulsion Array | -4/Factory | Hacked Alien Tech Used ----------------- None Achievements -------------- Dangerous Findings More Dakka Please Prolific Hacker Challenges ------------ None Game ------ Seed SwordFlightGutpuncher Manual? 0 Play Time 03:40:53 Cumulative 18.7 hours Start 2026.09.10 @ 21:13:07 End 2026.09.14 @ 20:23:58 Sessions 13 Manual Loads 0 Difficulty Rogue Special Mode None Game No. 11 Rogue 11 Adventurer 0 Explorer 0 Win Type - Total 0 Types 0/0/0/0/0/0/0/0/0/0 Lore% 8 Gallery% 15 Achievement% 12 Wizard Run 0 Options --------- Layout 1 ASCII 0 Keyboard 0 Movement Mouse Keybinds 0 Fullscreen 2 Font 24/Smallcaps Map View 50x35 Zoom Use 0% Tactical HUD 0 Map Filters NONE Filters NONE Steam 1 RUN: ab8fa6f4-cdb4-478d-9799-1be5a3a7618e